bitfinex-derivatives/quotes_ETHF0:USTF0_20210109
["timestamp","ask_amount","ask_price","bid_price","bid_amount"]
[1610228405420,17.9968,1282.1,1281.9,0.70733262]
[1610228405719,17.9968,1282.1,1282.0,0.47188488]
[1610228406119,17.9968,1282.1,1282.0,0.2361685]
[1610228406719,17.9968,1282.1,1281.9,0.472337]
[1610228406720,17.9968,1282.1,1281.9,0.23639306]
[1610228406920,4.00959,1282.0,1281.9,0.23639306]
[1610228407121,4.00959,1282.0,1281.8,0.23657561]
[1610228408421,4.00959,1282.0,1281.9,0.23654555]
[1610228408822,4.00959,1282.0,1281.8,0.23658393]
[1610228410526,4.00959,1282.0,1281.9,0.23676185]
[1610228411725,5.55879,1282.0,1281.9,0.23676185]
[1610228412127,4.00959,1282.0,1281.9,0.23676185]
[1610228412326,4.00959,1282.0,1281.8,0.23745801]
[1610228412527,5.58659,1282.0,1281.8,0.23745801]
[1610228412728,5.58659,1282.0,1281.7,0.23753428]
[1610228412927,4.00959,1281.8,1281.7,0.23753428]
[1610228413127,5.92609,1281.8,1281.6,0.47491603]
[1610228413327,5.92609,1281.8,1281.7,0.47503543]
[1610228414228,7.47429,1281.8,1281.7,0.47503543]
[1610228414429,7.47429,1281.8,1281.7,0.71309588]
[1610228415030,7.47429,1281.8,1281.6,0.71354916]
[1610228415229,5.92609,1281.8,1281.6,0.71354916]
[1610228415430,5.92609,1281.8,1281.7,0.2380115]
[1610228415828,5.92609,1281.8,1281.6,0.476023]
[1610228416029,5.92609,1281.8,1281.7,0.23812151]
[1610228416229,7.49699,1281.8,1281.7,0.23812151]
[1610228416431,7.49699,1281.8,1281.6,0.23810205]
[1610228416833,7.49699,1281.8,1281.7,0.47595964]
[1610228417533,7.49699,1281.8,1281.7,0.23815264]
[1610228417733,7.49699,1281.8,1281.6,0.47630528]
[1610228417734,7.49699,1281.8,1281.6,0.23821691]
[1610228418034,7.49699,1281.8,1281.6,0.23820692]
[1610228419035,5.92609,1281.8,1281.6,0.23820692]
[1610228419435,5.92609,1281.8,1281.5,0.23803831]
[1610228419936,7.49089,1281.8,1281.5,0.23803831]
[1610228420236,37.49089,1281.8,1281.5,0.23803831]
[1610228420437,51.2525,1281.6,1281.3,0.23861132]
[1610228420636,30.0,1281.5,1281.3,0.23861132]
[1610228420838,4.00959,1281.4,1281.1,0.23879722]
[1610228421037,30.0,1281.3,1281.1,0.23879722]
[1610228421238,30.0,1281.3,1280.9,0.23911288]
[1610228421640,30.0,1281.3,1280.8,0.23947272]
[1610228422040,4.00959,1281.4,1280.7,0.23961966]
[1610228422541,30.0,1281.3,1280.7,0.23961966]
[1610228422940,4.00959,1280.8,1280.6,0.2396326]
[1610228423140,5.83599,1280.8,1280.6,0.2396326]
[1610228423340,5.83599,1280.8,1280.5,0.47925946]
[1610228423341,5.83599,1280.8,1280.5,0.2396533]
[1610228424141,35.83599,1280.8,1280.5,0.2396533]
[1610228424943,4.00959,1280.6,1280.5,0.2396533]
[1610228425344,4.00959,1280.6,1280.4,0.23965467]
[1610228425746,4.00959,1280.6,1280.5,0.23963903]
[1610228426146,1.8264,1280.8,1280.4,0.71890605]
[1610228426345,1.8264,1280.8,1280.4,0.95848213]
[1610228426746,1.8264,1280.8,1280.7,0.47916566]
[1610228427147,1.8264,1280.8,1280.7,0.71835108]
[1610228427346,1.8264,1280.8,1280.6,0.95780143]
[1610228427748,1.8264,1280.8,1280.7,0.71830827]
[1610228428146,12.5031,1281.7,1280.7,0.95758976]
[1610228428346,12.5031,1281.7,1281.0,0.23938856]
[1610228428646,12.5031,1281.7,1281.1,0.23936506]
[1610228428848,4.00959,1281.2,1281.1,0.23936506]
[1610228429047,4.00959,1281.2,1281.0,0.23944655]
[1610228429448,4.00959,1281.2,1281.1,0.23934973]
[1610228429649,4.00959,1281.2,1281.1,0.47850074]
[1610228430050,4.00959,1281.2,1281.1,0.7173826]
[1610228432652,4.00959,1281.2,1281.1,0.47779606]
[1610228434851,6.44329,1281.2,1281.1,0.47779606]
[1610228435653,6.44329,1281.2,1281.0,0.47605815]
[1610228436955,6.44329,1281.2,1281.0,0.23748194]
[1610228437354,6.44329,1281.2,1280.9,0.23758485]
[1610228437756,6.44329,1281.2,1281.0,0.23752536]
[1610228438357,36.44329,1281.2,1281.0,0.23752536]
[1610228438959,36.44329,1281.2,1280.6,0.47588274]
[1610228439559,36.44329,1281.2,1280.4,0.47676009]
[1610228439959,36.44329,1281.2,1280.3,0.47721489]
[1610228441060,4.00959,1280.4,1280.3,0.47721489]
[1610228441260,6.44599,1280.4,1280.3,0.47721489]
[1610228441661,6.44599,1280.4,1280.2,0.47716553]
[1610228442761,6.44599,1280.4,1280.1,0.47824509]
[1610228442963,4.00959,1280.2,1280.1,0.47824509]
[1610228443161,4.00959,1280.2,1280.0,0.71646643]
[1610228443363,4.00959,1280.2,1280.1,0.71791415]
[1610228444163,4.00959,1280.2,1280.0,0.71834653]
[1610228444471,4.00959,1280.2,1280.1,0.47899641]
[1610228445467,4.00959,1280.2,1280.0,0.71834653]
[1610228445766,4.00959,1280.2,1280.1,0.47882903]
[1610228447469,4.00959,1280.2,1280.0,0.47902461]
[1610228448168,4.00959,1280.2,1280.0,0.47935528]
[1610228449171,4.00959,1280.2,1280.1,0.23973593]
[1610228450171,4.00959,1280.2,1280.0,0.47935528]
[1610228450871,4.00959,1280.2,1280.1,0.47938261]
[1610228451571,4.00959,1280.2,1280.0,0.71900037]
[1610228452874,4.00959,1280.2,1280.1,0.47943742]
[1610228453774,4.00959,1280.2,1280.0,0.47946177]
[1610228453975,4.00959,1280.2,1280.0,0.23973896]
[1610228455977,4.00959,1280.2,1279.9,0.23974887]
[1610228456978,4.00959,1280.0,1279.9,0.23974887]
[1610228457180,6.36599,1280.0,1279.9,0.23974887]
[1610228459980,6.36599,1280.0,1279.8,0.23977604]
[1610228460180,6.36599,1280.0,1279.7,0.71931146]
[1610228460381,6.36599,1280.0,1279.7,0.23978117]
[1610228460580,6.36599,1280.0,1279.8,0.23978066]
[1610228460980,36.36599,1280.0,1279.7,0.23980684]
[1610228461381,51.1882,1279.7,1279.4,0.23985398]
[1610228461582,81.1882,1279.7,1279.3,0.23987249]
[1610228461986,81.1882,1279.7,1279.2,0.23989887]
[1610228462184,83.6695,1279.7,1278.9,0.23994218]
[1610228462384,32.4813,1279.7,1278.9,0.23994218]
[1610228462583,32.4813,1279.7,1278.8,0.47988436]
[1610228462584,54.264,1278.8,1278.7,0.23997371]
[1610228462784,1.9764,1278.8,1278.7,0.23997371]
[1610228462986,5.98599,1278.8,1278.5,0.24003505]
[1610228463187,5.98599,1278.8,1278.2,0.72010514]
[1610228463188,60.7466,1278.4,1278.2,0.24008081]
[1610228463385,35.98599,1278.8,1278.2,0.24008081]
[1610228463584,35.98599,1278.8,1278.0,0.24009817]
[1610228463984,35.98599,1278.8,1277.8,0.48021882]
[1610228464184,60.4835,1277.7,1277.6,0.4803694]
[1610228464384,30.0,1277.7,1277.2,0.4803765]
[1610228464784,30.0,1277.7,1277.1,0.48045213]
[1610228464984,4.00959,1277.2,1277.1,0.48045213]
[1610228465184,6.22109,1277.2,1277.1,0.48045213]
[1610228465384,6.22109,1277.2,1276.7,0.72077529]
[1610228465784,6.22109,1277.2,1276.8,0.72078196]
[1610228465984,56.2126,1277.1,1276.8,0.72078196]
[1610228466186,56.2126,1277.1,1276.7,0.72080908]
[1610228466385,56.2126,1277.1,1276.6,0.72084156]
[1610228466786,6.22109,1277.2,1276.6,0.72084156]
[1610228466985,4.00959,1276.7,1276.6,0.72084156]
[1610228467190,6.12689,1276.7,1276.6,0.96104347]
[1610228467587,6.12689,1276.7,1276.6,1.20117324]
[1610228467787,6.12689,1276.7,1276.6,1.44133222]
[1610228468388,6.12689,1276.7,1276.6,2.64126553]
[1610228469390,6.12689,1276.7,1276.6,1.19993331]
[1610228469790,6.12689,1276.7,1276.4,1.92169361]
[1610228470390,6.12689,1276.7,1276.6,1.44126301]
[1610228471390,6.12689,1276.7,1276.5,1.44133651]
[1610228471791,6.12689,1276.7,1276.4,1.4413125]
[1610228472191,6.12689,1276.7,1276.1,56.2226]
[1610228472192,6.12689,1276.7,1276.5,1.44139321]
[1610228472991,6.12689,1276.7,1276.4,1.44143557]
[1610228473190,6.12689,1276.7,1276.6,1.20121188]
[1610228474592,6.12689,1276.7,1276.4,1.44144009]
[1610228474792,6.12689,1276.7,1276.4,9.89404009]
[1610228474993,6.12689,1276.7,1276.6,1.4413276]
[1610228475192,2.1173,1276.7,1276.6,1.4413276]
[1610228475392,2.2115,1277.2,1276.5,1.92159494]
[1610228475592,5.8179,1277.8,1276.5,1.92159494]
[1610228475792,5.8179,1277.8,1277.1,0.96080501]
[1610228476195,5.8179,1277.8,1277.6,0.24019403]
[1610228476693,5.8179,1277.8,1085.0,0.98656796]
[1610228476694,8.39709662,1277.1,1085.0,0.98656796]
[1610228476892,10.38139662,1277.1,1085.0,0.98656796]
[1610228477092,4.00959,1276.9,1276.4,4.00959]
[1610228477294,4.00959,1276.9,1276.7,1.44116296]
[1610228478392,4.00959,1276.9,1276.8,1.44118962]
[1610228479194,10.38139662,1277.1,1276.7,1.44112095]
[1610228479594,10.38139662,1277.1,1276.6,1.92140601]
[1610228479794,10.38139662,1277.1,1276.9,1.44107375]
[1610228480197,10.38139662,1277.1,1277.0,1.44092917]
[1610228480600,10.38139662,1277.1,1276.9,1.92110836]
[1610228480999,10.38139662,1277.1,1277.0,1.92105539]
[1610228481199,10.38139662,1277.1,1277.0,4.00959]
[1610228481399,8.39709662,1277.1,1277.0,4.00959]
[1610228481599,8.39709662,1277.1,1277.0,7.609757]
[1610228482200,8.39709662,1277.1,1277.0,6.78468264]
[1610228483002,8.39709662,1277.1,1277.0,9.66504488]
[1610228483201,8.39709662,1277.1,1277.0,6.78468264]
[1610228484802,8.39709662,1277.1,1277.0,10.14392044]
[1610228485802,8.39709662,1277.1,1277.0,6.78468264]
[1610228486204,8.39709662,1277.1,1277.0,10.14369122]
[1610228486404,8.39709662,1277.1,1277.0,6.78468264]
[1610228487607,8.39709662,1277.1,1277.0,61.43648264]
[1610228487808,8.39709662,1277.1,1277.0,64.79549436]
[1610228488208,8.39709662,1277.1,1277.0,61.43648264]
[1610228490310,8.39709662,1277.1,1277.0,64.79545472]
[1610228491012,8.39709662,1277.1,1277.0,61.43648264]
[1610228491412,8.39709662,1277.1,1277.0,64.79535134]
[1610228492713,8.39709662,1277.1,1277.0,61.43648264]
[1610228495815,8.39709662,1277.1,1277.0,64.79575393]
[1610228496416,8.39709662,1277.1,1277.0,61.43648264]
[1610228497218,8.39709662,1277.1,1277.0,64.79564947]
[1610228498018,8.39709662,1277.1,1277.0,61.43648264]
[1610228498419,8.39709662,1277.1,1277.0,64.79575038]
[1610228499822,8.39709662,1277.1,1277.0,61.43648264]
[1610228500022,8.39709662,1277.1,1277.0,64.79577263]
[1610228500421,8.39709662,1277.1,1277.0,10.14397263]
[1610228500823,8.39709662,1277.1,1277.0,6.78468264]
[1610228501824,8.39709662,1277.1,1277.0,5.65499594]
[1610228502024,8.39709662,1277.1,1277.0,4.07919594]
[1610228502427,8.39709662,1277.1,1277.0,1.19929264]
[1610228503027,8.39709662,1277.1,1277.0,3.59958743]
[1610228503226,12.40668662,1277.1,1277.0,3.59958743]
[1610228503427,13.98708662,1277.1,1277.0,3.59958743]
[1610228503830,13.98708662,1277.1,1277.0,3.11986255]
[1610228504130,13.98708662,1277.1,1277.0,1.19929264]
[1610228505230,13.98708662,1277.1,1277.0,2.63988859]
[1610228507134,13.98708662,1277.1,1277.0,1.19929264]
[1610228507734,13.98708662,1277.1,1277.0,2.64008567]
[1610228508735,13.98708662,1277.1,1277.0,1.19929264]
[1610228509535,13.98708662,1277.1,1277.0,2.40014646]
[1610228509836,13.98708662,1277.1,1277.0,2.1599982]
[1610228511238,13.98708662,1277.1,1277.0,2.40010778]
[1610228511837,13.98708662,1277.1,1277.0,1.91986544]
[1610228512238,13.98708662,1277.1,1277.0,1.19929264]
[1610228513239,43.98708662,1277.1,1277.0,1.19929264]
[1610228513439,51.1999,1277.0,1276.7,0.24034636]
[1610228513642,30.0,1276.9,1276.7,0.24034636]
[1610228513839,30.0,1276.9,1276.5,0.24035105]
[1610228514040,30.0,1276.9,1276.3,0.24037121]
[1610228514239,31.5653,1276.9,1276.3,0.24037121]
[1610228514439,31.5653,1276.9,1276.2,0.24036803]
[1610228514638,51.1999,1277.0,1276.2,0.24036803]
[1610228515039,51.1999,1277.0,1276.3,0.24036529]
[1610228515239,4.00959,1276.4,1276.3,0.24036529]
[1610228515439,6.54649,1276.4,1276.3,0.24036529]
[1610228515840,6.54649,1276.4,1276.2,0.48073058]
[1610228516040,6.54649,1276.4,1276.3,0.4806748]
[1610228516440,6.54649,1276.4,1276.3,0.96123129]
[1610228516640,8.12589,1276.4,1276.3,0.96123129]
[1610228517643,4.1163,1276.4,1276.3,0.96123129]
[1610228517842,2.5369,1276.4,1276.3,1.20149367]
[1610228518044,2.5369,1276.4,1276.3,55.5277]
[1610228518443,9.97749662,1277.1,1276.2,1.92201987]
[1610228518843,9.97749662,1277.1,1277.0,0.72072183]
[1610228519042,9.97749662,1277.1,1276.9,0.72072863]
[1610228519242,4.00959,1277.0,1276.9,0.72072863]
[1610228520044,4.00959,1277.0,1276.8,0.72078442]
[1610228520345,4.00959,1277.0,1276.9,0.48053312]
[1610228520844,4.00959,1277.0,1276.9,1.68077299]
[1610228521046,4.00959,1277.0,1276.9,1.44053584]
[1610228521846,4.00959,1277.0,1276.9,1.68080226]
[1610228522450,4.00959,1277.0,1276.9,0.48056239]
[1610228522645,4.00959,1277.0,1276.9,0.24029825]
[1610228523246,5.57579,1277.0,1276.9,0.24029825]
[1610228523446,5.57579,1277.0,1276.8,0.72079923]
[1610228523646,5.57579,1277.0,1276.9,2.16108407]
[1610228523850,4.00959,1277.0,1276.9,2.16108407]
[1610228524649,4.00959,1277.0,1276.9,1.20006666]
[1610228524846,5.56109,1277.0,1276.9,1.20006666]
[1610228525248,5.56109,1277.0,1276.9,2.40121315]
[1610228525448,5.56109,1277.0,1276.9,1.20006666]
[1610228525648,4.00959,1277.0,1276.9,1.20006666]
[1610228526049,4.00959,1277.0,1276.9,2.40122359]
[1610228526650,4.00959,1277.0,1276.9,1.20115693]
[1610228526651,1.5765,1277.0,1276.9,1.20115693]
[1610228527049,1.5765,1277.0,1276.9,46.105]
[1610228527250,1.5765,1277.0,1276.9,50.11459]
[1610228527449,1.5765,1277.0,1276.9,46.105]
[1610228527852,9.97749662,1277.1,1276.9,46.105]
[1610228527853,8.39709662,1277.1,1276.9,46.105]
[1610228528055,8.39709662,1277.1,1276.9,47.30450307]
[1610228528355,8.39709662,1277.1,1276.9,49.22546766]
[1610228528755,9.96929662,1277.1,1277.0,1.92086106]
[1610228529355,9.96929662,1277.1,1277.0,7.1296394]
[1610228529955,9.96929662,1277.1,1277.0,5.20877834]
[1610228530156,9.96929662,1277.1,1277.0,1.19918834]
[1610228530556,8.39709662,1277.1,1277.0,1.19918834]
[1610228530756,8.39709662,1277.1,1277.0,2.63999407]
[1610228530956,8.39709662,1277.1,1277.0,1.19918834]
[1610228531359,12.40668662,1277.1,1277.0,1.19918834]
[1610228531557,13.95228662,1277.1,1277.0,1.19918834]
[1610228531759,13.95228662,1277.1,1277.0,2.40008815]
[1610228532157,13.95228662,1277.1,1277.0,1.19918834]
[1610228532357,12.40668662,1277.1,1277.0,1.19918834]
[1610228532556,12.40668662,1277.1,1277.0,2.15994007]
[1610228533156,12.40668662,1277.1,1277.0,1.91980715]
[1610228533556,12.40668662,1277.1,1277.0,1.19918834]
[1610228534156,14.36578662,1277.1,1277.0,1.19918834]
[1610228534358,14.36578662,1277.1,1277.0,1.91982351]
[1610228534557,15.90838662,1277.1,1277.0,1.91982351]
[1610228534958,15.90838662,1277.1,1277.0,1.19918834]
[1610228535759,14.36578662,1277.1,1277.0,2.40014516]
[1610228536962,14.36578662,1277.1,1277.0,1.19918834]
[1610228537561,14.36578662,1277.1,1277.0,2.15999235]
[1610228541466,14.36578662,1277.1,1277.0,1.19918834]
[1610228541866,14.36578662,1277.1,1277.0,1.91987891]
[1610228542466,14.36578662,1277.1,1277.0,2.16005695]
[1610228543267,14.36578662,1277.1,1277.0,61.44935695]
[1610228543868,14.36578662,1277.1,1277.0,60.48848834]
[1610228544968,14.36578662,1277.1,1277.0,61.44931608]
[1610228548875,10.35619662,1277.1,1277.0,61.44931608]
[1610228549074,10.35619662,1277.1,1277.0,60.48848834]
[1610228549377,10.35619662,1277.1,1277.0,64.49807834]
[1610228549675,10.35619662,1277.1,1277.0,60.48848834]
[1610228550077,10.35619662,1277.1,1277.0,61.68947214]
[1610228550275,10.35619662,1277.1,1277.0,2.40017214]
[1610228550476,10.35619662,1277.1,1277.0,1.19918834]
[1610228550876,10.35619662,1277.1,1277.0,1.91983323]
[1610228551076,10.35619662,1277.1,1277.0,1.67966707]
[1610228551477,14.36578662,1277.1,1277.0,1.19918834]
[1610228551677,14.36578662,1277.1,1277.0,1.43944058]
[1610228553983,14.36578662,1277.1,1277.0,1.19918834]
[1610228555187,14.36578662,1277.1,1277.0,1.43944696]
[1610228555986,14.36578662,1277.1,1277.0,1.19918834]
[1610228556185,14.36578662,1277.1,1276.7,0.24030477]
[1610228556587,14.36578662,1277.1,1276.6,0.48060953]
[1610228556588,14.36578662,1277.1,1276.6,0.2403116]
[1610228556987,14.36578662,1277.1,1276.5,0.24031864]
[1610228557289,14.36578662,1277.1,1276.6,0.24031892]
[1610228557490,10.35619662,1277.1,1276.7,1.20047831]
[1610228557888,10.35619662,1277.1,1276.7,1.44078185]
[1610228558289,10.35619662,1277.1,1276.8,0.24029202]
[1610228558691,10.35619662,1277.1,1276.9,0.24025851]
[1610228558890,10.35619662,1277.1,1277.0,0.24025816]
[1610228559090,10.35619662,1277.1,1276.8,1.92091051]
[1610228559291,10.35619662,1277.1,1276.8,1.20013603]
[1610228559492,4.00959,1276.9,1276.8,1.20013603]
[1610228561696,4.00959,1276.9,1276.5,1.92121419]
[1610228562196,4.00959,1276.9,1276.6,0.72091812]
[1610228562596,4.00959,1276.9,1276.5,1.92127669]
[1610228562997,4.00959,1276.9,1276.7,1.20046698]
[1610228564297,4.00959,1276.9,1276.5,1.2005228]
[1610228564700,4.00959,1276.9,1276.5,1.92150286]
[1610228564999,4.00959,1276.9,1276.6,0.72096349]
[1610228565500,4.00959,1276.7,1276.6,0.72096349]
[1610228565702,4.00959,1276.7,1276.5,2.16176976]
[1610228565900,4.00959,1276.7,1276.5,0.96124696]
[1610228566101,5.96199,1276.7,1276.6,0.9612033]
[1610228566700,5.96199,1276.7,1276.5,1.20146702]
[1610228566900,1.9524,1276.7,1276.5,1.20146702]
[1610228567100,1.9524,1276.7,1276.6,1.20133887]
[1610228567299,1.9524,1276.7,1276.6,2.40148466]
[1610228567501,1.9524,1276.7,1276.6,5.20973579]
[1610228567903,10.35619662,1277.1,1276.6,5.20973579]
[1610228568103,10.35619662,1277.1,1276.8,62.9964]
[1610228568302,10.35619662,1277.1,1276.8,64.43759095]
[1610228569102,8.39709662,1277.1,1276.8,64.43759095]
[1610228569503,8.39709662,1277.1,1277.0,4.00959]
[1610228571308,8.39709662,1277.1,1277.0,5.20940923]
[1610228573210,8.39709662,1277.1,1277.0,2.39986212]
[1610228573410,12.40668662,1277.1,1277.0,6.40945212]
[1610228574012,12.40668662,1277.1,1277.0,2.39986212]
[1610228574214,8.39709662,1277.1,1277.0,2.39986212]
[1610228574413,8.39709662,1277.1,1277.0,1.19981923]
[1610228575317,8.39709662,1277.1,1277.0,2.40082866]
[1610228575519,8.39709662,1277.1,1277.0,5.21059943]
[1610228576220,10.57079662,1277.1,1277.0,1.20100943]
[1610228576920,10.57079662,1277.1,1277.0,1.19984474]
[1610228578026,10.57079662,1277.1,1277.0,2.40086929]
[1610228578425,10.57079662,1277.1,1277.0,1.20102455]
[1610228579025,10.57079662,1277.1,1276.9,1.19982306]
[1610228579026,10.57079662,1277.1,1276.9,2.16076745]
[1610228579426,10.57079662,1277.1,1277.0,0.72075312]
[1610228579627,10.57079662,1277.1,1277.0,1.68066834]
[1610228580428,10.57079662,1277.1,1277.0,1.44041715]
[1610228581231,10.57079662,1277.1,1277.0,1.20013626]
[1610228581429,14.58038662,1277.1,1277.0,1.20013626]
[1610228581629,14.58038662,1277.1,1277.0,1.68070538]
[1610228582227,14.58038662,1277.1,1277.0,1.20013626]
[1610228582629,14.58038662,1277.1,1277.0,1.92091668]
[1610228582829,14.58038662,1277.1,1277.0,1.20013626]
[1610228583329,14.58038662,1277.1,1277.0,2.16109086]
[1610228583529,10.57079662,1277.1,1277.0,6.17068086]
[1610228584631,10.57079662,1277.1,1277.0,2.16109086]
[1610228584833,10.57079662,1277.1,1277.0,2.40129469]
[1610228585035,10.57079662,1277.1,1277.0,1.20013626]
[1610228585434,10.57079662,1277.1,1277.0,2.16109823]
[1610228585636,14.58038662,1277.1,1277.0,2.16109823]
[1610228586034,14.58038662,1277.1,1277.0,1.20013626]
[1610228586434,14.58038662,1277.1,1277.0,2.16108008]
[1610228586635,14.58038662,1277.1,1277.0,2.40127972]
[1610228587535,10.57079662,1277.1,1277.0,6.41086972]
[1610228587735,10.57079662,1277.1,1277.0,2.40127972]
[1610228588340,10.57079662,1277.1,1277.0,1.20013626]
[1610228588740,10.57079662,1277.1,1277.0,2.64124824]
[1610228589142,10.57079662,1277.1,1277.0,1.20013626]
[1610228589542,8.39709662,1277.1,1277.0,5.20972626]
[1610228589743,8.39709662,1277.1,1277.0,35.20972626]
[1610228589944,8.39709662,1277.1,1277.0,37.1309577]
[1610228590543,8.39709662,1277.1,1277.0,35.20972626]
[1610228590943,8.39709662,1277.1,1277.0,5.20972626]
[1610228591744,8.39709662,1277.1,1277.0,7.13080439]
[1610228592145,8.39709662,1277.1,1277.0,37.13080439]
[1610228592545,8.39709662,1277.1,1277.0,35.20972626]
[1610228593146,8.39709662,1277.1,1277.0,5.20972626]
[1610228593947,8.39709662,1277.1,1277.0,7.13089191]
[1610228594352,8.39709662,1277.1,1277.0,5.20972626]
[1610228595148,8.39709662,1277.1,1277.0,35.20972626]
[1610228595547,8.39709662,1277.1,1277.0,37.13080435]
[1610228596147,8.39709662,1277.1,1277.0,7.13080435]
[1610228598649,8.39709662,1277.1,1277.0,37.13080435]
[1610228601351,8.39709662,1277.1,1277.0,35.20972626]
[1610228601949,8.39709662,1277.1,1277.0,36.80342626]
[1610228602750,8.39709662,1277.1,1277.0,39.20422581]
[1610228603151,8.39709662,1277.1,1277.0,39.68409692]
[1610228603352,8.39709662,1277.1,1277.0,36.80342626]
[1610228604752,8.39709662,1277.1,1277.0,40.16352359]
[1610228606656,8.39709662,1277.1,1277.0,36.80342626]
[1610228606953,8.39709662,1277.1,1277.0,40.16332336]
[1610228607654,8.39709662,1277.1,1277.0,36.80342626]
[1610228608253,4.00959,1279.2,1277.1,48.7217]
[1610228608453,4.00959,1279.2,1277.2,30.0]
[1610228608854,4.00959,1279.2,1279.1,0.23996456]
[1610228609653,4.00959,1279.2,1279.1,4.00959]
[1610228610054,4.00959,1279.2,1279.1,5.20802816]
[1610228610254,2.5972,1279.4,1279.1,5.20802816]
[1610228610859,2.5972,1279.4,1279.2,0.23993069]
[1610228611060,2.5972,1279.4,1279.3,0.23991312]
[1610228611658,2.5972,1279.4,1279.3,4.24950312]
[1610228612658,2.5972,1279.4,1279.3,4.72920249]
[1610228613060,2.5972,1279.4,1279.3,4.00959]
[1610228613460,4.00959,1279.8,1279.3,4.72917467]
[1610228613659,4.00959,1279.8,1279.7,4.00959]
[1610228614461,64.151,1281.4,1279.8,52.4498]
[1610228614660,6.1196,1282.0,1279.7,4.00959]
[1610228614861,6.1429,1281.3,1280.2,62.9866]
[1610228615061,8.3675,1281.3,1280.2,62.9866]
[1610228615561,4.00959,1280.3,1280.2,62.9866]
[1610228616160,6.10389,1280.3,1280.2,62.9866]
[1610228616960,6.10389,1280.3,1279.9,4.00959]
[1610228617163,6.10389,1280.3,1280.0,59.1066]
[1610228617561,4.00959,1280.1,1280.0,59.1066]
[1610228619061,4.00959,1280.1,1279.8,0.23982049]
[1610228619461,4.00959,1280.1,1279.6,0.23984567]
[1610228619660,4.00959,1279.7,1279.6,0.23984567]
[1610228619862,5.62179,1279.7,1279.5,45.3061693]
[1610228620063,5.62179,1279.7,1279.5,45.0663]
[1610228620864,5.62179,1279.7,1279.4,0.23987073]
[1610228621265,5.62179,1279.7,1279.3,0.23990303]
[1610228621465,5.62179,1279.7,1279.2,0.23991392]
[1610228621666,4.00959,1279.4,1279.2,0.23991392]
[1610228621869,6.48619,1279.4,1279.2,0.23991392]
[1610228622068,6.48619,1279.4,1279.1,0.2399277]
[1610228623569,4.00959,1279.2,1279.1,0.2399277]
[1610228623968,4.00959,1279.2,1279.0,55.30742679]
[1610228624371,4.00959,1279.2,1279.1,0.23991241]
[1610228625571,4.00959,1279.2,1279.1,1.43828461]
[1610228626073,4.00959,1279.2,1279.1,1.1983722]
[1610228628674,26.00959,1279.2,1279.1,1.1983722]
[1610228629478,26.00959,1279.2,1279.0,55.0675]
[1610228639190,26.00959,1279.2,1279.1,1.19863528]
[1610228643498,26.00959,1279.2,1278.6,0.23998765]
[1610228643699,4.00959,1278.7,1278.6,0.23998765]
[1610228643899,6.50259,1278.7,1278.6,0.23998765]
[1610228644500,6.50259,1278.7,1278.3,0.24004508]
[1610228644699,6.50259,1278.7,1278.6,1.19915374]
[1610228645100,6.50259,1278.7,1278.0,0.240076]
[1610228645800,6.50259,1278.7,1277.9,53.13132187]
[1610228645801,4.00959,1278.1,1277.9,53.13132187]
[1610228646001,5.63339,1278.1,1277.9,0.24012187]
[1610228646402,5.63339,1278.1,1277.7,0.48027893]
[1610228646403,5.63339,1278.1,1277.7,0.24018914]
[1610228646603,5.63339,1278.1,1277.5,0.24019512]
[1610228647303,5.63339,1278.1,1277.6,0.24018546]
[1610228647504,5.63339,1278.1,1277.6,1.43993143]
[1610228647703,4.00959,1277.7,1277.6,1.43993143]
[1610228647906,5.83409,1277.7,1277.6,1.19974597]
[1610228648107,5.83409,1277.7,1277.5,0.24020369]
[1610228648304,5.83409,1277.7,1277.4,58.01181021]
[1610228649704,4.00959,1277.5,1277.4,58.01181021]
[1610228651707,4.00959,1277.5,1277.4,57.7716]
[1610228652309,4.00959,1277.5,1277.3,0.24023812]
[1610228652507,4.00959,1277.5,1277.2,0.24024557]
[1610228652710,4.00959,1277.5,1277.1,9.72849115]
[1610228653110,4.00959,1277.5,1277.1,9.248]
[1610228653508,4.00959,1277.5,1277.1,9.72850019]
[1610228653708,4.00959,1277.5,1277.2,0.48051333]
[1610228653909,1.8245,1277.7,1277.2,54.08361333]
[1610228654110,13.6463,1278.1,1277.2,44.82201333]
[1610228654909,13.6463,1278.1,1277.0,0.72076563]
[1610228655110,13.6463,1278.1,1276.9,0.72077561]
[1610228655312,13.6463,1278.1,1277.0,53.3192]
[1610228655510,13.6463,1278.1,1276.9,0.72077561]
[1610228655913,13.6463,1278.1,1277.3,48.1079]
[1610228657816,4.00959,1277.4,1277.3,48.1079]
[1610228658018,5.62029,1277.4,1277.3,48.1079]
[1610228659018,5.62029,1277.4,1277.3,49.30774835]
[1610228659418,5.62029,1277.4,1277.3,50.0283762]
[1610228660422,5.62029,1277.4,1277.3,49.30774835]
[1610228661122,5.62029,1277.4,1277.3,50.26845151]
[1610228663323,5.62029,1277.4,1277.3,49.30774835]
[1610228664322,5.62029,1277.4,1277.3,1.92049325]
[1610228664722,5.62029,1277.4,1277.3,1.68028373]
[1610228665523,1.6107,1277.4,1277.3,1.68028373]
[1610228665723,1.6107,1277.4,1277.3,1.92049409]
[1610228665924,1.6238,1278.1,1277.3,1.92049409]
[1610228666123,11.5982,1278.6,1277.4,52.4412]
[1610228666324,11.5982,1278.6,1277.6,0.2402079]
[1610228667728,11.5982,1278.6,1277.7,1.19986093]
[1610228667928,4.00959,1277.8,1277.7,1.19986093]
[1610228668129,6.60859,1277.8,1277.7,1.19986093]
[1610228669033,6.60859,1277.8,1277.5,0.24021637]
[1610228669834,4.00959,1277.6,1277.5,0.24021637]
[1610228672036,4.00959,1277.6,1277.5,1.44007401]
[1610228672639,4.00959,1277.6,1277.5,1.19985764]
[1610228673339,4.00959,1277.6,1277.5,1.68027263]
[1610228675141,4.00959,1277.6,1277.5,1.44006384]
[1610228675343,4.00959,1277.6,1277.5,0.2402062]
[1610228676143,4.00959,1277.6,1277.4,52.68141381]
[1610228676341,4.00959,1277.6,1277.5,1.19991938]
[1610228677543,4.00959,1277.6,1276.9,0.24030694]
[1610228677742,49.78879,1277.6,1276.9,0.24030694]
[1610228677942,4.00959,1277.0,1276.7,0.24033564]
[1610228678142,5.85229,1277.0,1276.7,0.24033564]
[1610228678342,5.85229,1277.0,1276.6,0.24036862]
[1610228678744,5.85229,1277.0,1276.4,0.24038059]
[1610228679142,5.85229,1277.0,1276.3,0.24041353]
[1610228679542,5.85229,1277.0,1276.2,0.48082707]